Cogmind - Beta 17 @@@ ROGUE MODE // 2026.07.08 @ 13:22:37 Player: Zish Result: Destroyed by AE-L7F(R) with Subdweller Laser Performance ------------- Evolutions (0) 0 Regions Visited (2) 400 Robots Destroyed (20) 100 Value Destroyed (286) 286 Prototype IDs (18) 360 Alien Tech Used (0) 0 Bonus (5469) 5469 TOTAL SCORE: 6615 Bonus ------- Prayed to X0-1V1 5000 Major X0-1V1 Interference 550 Friendly Fire -81 Cogmind --------- Core Integrity 0/250 Matter 260/300 Energy 94/100 System Corruption 1% Temperature Cool (6) Movement Treading (160) Location -10/Subcaves Parts ------- > --- POWER (1) -------- (None) > --- PROPULSION (2) --- Improved Treads (fused) > --- UTILITY (2) ------ Self-contained Transmogrifier > --- WEAPON (2) ------- Spread Laser (fused) Hammer > --- INVENTORY (5) ---- Maxwheels EMP Blaster Peak State ------------ > --- POWER ------------ (None) > --- PROPULSION ------- Improved Treads > --- UTILITY ---------- Self-contained Transmogrifier X0-1V1's Piety Tracker > --- WEAPON ----------- Autogun Hammer > --- INVENTORY -------- Maxwheels EMP Blaster [Rating: 30] Favorites ----------- Power Ion Engine Engine Ion Engine Propulsion Light Treads Treads Light Treads Utility Light Armor Plating Device X0-1V1's Piety Tracker Storage Small Storage Unit Protection Light Armor Plating Weapon Autogun Energy Gun EM Pulse Gun Ballistic Gun Autogun Launcher EMP Blaster Special Weapon Flamer Impact Weapon Hammer Special Melee Weapon Datajack Build | -11 -10 -10 ------- Run | Yrd Mat Sub Slots Evolved . | . . . Power . | . . . Propulsion . | . . . Utility . | . . . Weapon . | . . . Parts Attached 23 | 7 8 8 Power 2 | 1 1 . Engine 2 | 1 1 . Core . | . . . Reactor . | . . . Propulsion 4 | 2 . 2 Treads 4 | 2 . 2 Leg . | . . . Wheel . | . . . Hover . | . . . Flight . | . . . Utility 6 | 1 3 2 Device 3 | . 1 2 Storage 2 | 1 1 . Processor . | . . . Hackware . | . . . Protection 1 | . 1 . Artifact . | . . . Weapon 11 | 3 4 4 Energy Gun 1 | 1 . . Energy Cannon . | . . . Ballistic Gun 6 | 2 2 2 Ballistic Cannon . | . . . Launcher 1 | . 1 . Special Weapon 1 | . . 1 Impact Weapon 1 | . 1 . Slashing Weapon . | . . . Piercing Weapon . | . . . Special Melee Weapon 1 | . . 1 Unidentified Prototypes 2 | . 1 1 Parts Lost 10 | . . 10 Power 2 | . . 2 Propulsion 3 | . . 3 Utility 2 | . . 2 Weapon 3 | . . 3 Highest Loss Streak 7 | . . 7 To Critical Strikes . | . . . Average Backups 7 | . 8 8 Power . | . 1 . Propulsion 2 | . 2 3 Utility . | . . 1 Weapon 3 | . 3 2 Tool/Special . | . . . Unused Backups 7 | . . 7 Power . | . . . Propulsion 5 | . . 5 Utility 1 | . . 1 Weapon 1 | . . 1 Tool/Special . | . . . Average Slot Usage (%) 93 | . 99 77 Engine 11 | . 14 4 Treads 25 | . 28 19 Device 4 | . . 15 Storage 12 | . 14 9 Protection 9 | . 13 . Ballistic Gun 22 | . 25 13 Launcher 1 | . 1 . Impact Weapon 2 | . . 10 Peak Build Rating 30 | 6 22 30 Average Rating 12 | 4 9 20 On Entrance 9 | . 6 21 Avg Prop Armor Cover (%) . | . . . Naked Turns . | . . . Heaviest Build 34 | 13 34 31 Greatest Support 40 | 40 40 40 Greatest Overweight (x) 1 | . . 1 Average Overweight (x) . | . . . Largest Inventory Capacity 15 | 8 15 15 Average Capacity 10 | 7 10 11 Most Carried 14 | 1 14 14 Average Carried 8 | . 8 9 Final Capacity 15 | 8 15 5 Final Carried 14 | 1 14 5 Transmogrified Parts 1 | . . 1 Integrity Recovered 61 | . . 61 Class Distribution -------------------- 100% | Mutant Dominant Class ---------------- Mutant | -10/Materials Mutant | -10/Subcaves Resources | -11 -10 -10 ----------- Run | Yrd Mat Sub Matter Collected 746 | 200 418 128 Remotely . | . . . Salvage Created 506 | . 452 54 Parts 37 | . 33 4 Haulers Intercepted 2 | . 2 . Recyclers Shooed . | . . . Parts Field Recycled . | . . . Retrieved Matter . | . . . Parts Self-Destructed . | . . . Prevented . | . . . Parts Restored . | . . . Kills | -11 -10 -10 ------- Run | Yrd Mat Sub Combat Hostiles Destroyed 13 | . 12 1 Melee 1 | . . 1 Guns 11 | . 11 . AOE 1 | . 1 . Classes Destroyed 9 | . 7 2 Worker 2 | . 2 . Hauler 2 | . 2 . Recycler 1 | . 1 . Operator 1 | . 1 . Watcher 1 | . 1 . Swarmer 9 | . 9 . Grunt 3 | . 3 . Artisan 1 | . . 1 Subdweller 1 | . . 1 Best Kill Streak 3 | . 3 1 Combat Bots Only 3 | . 3 1 Max Kills in Single Turn 2 | . 2 1 Gunslinging 1 | . 1 . Exploded 1 | . 1 . Melee 1 | . . 1 Uniques/NPCs Destroyed . | . . . Combat | -11 -10 -10 -------- Run | Yrd Mat Sub Hostile Shots Fired 107 | . 35 72 Missed 27 | . 12 15 Hits 80 | . 23 57 Projectile 80 | . 23 57 AOE 7 | . . 7 Damage Taken 1601 | . 193 1408 Core 254 | . 33 221 Absorbed by Shields . | . . . Core Remaining (%) 100 | 100 . . Volleys Fired 58 | . 38 20 Largest 2 | . 2 1 Hottest 100 | . 56 100 Shots Fired 96 | . 76 20 Gun 89 | . 75 14 Cannon . | . . . Launcher 1 | . 1 . Special 6 | . . 6 Kinetic 88 | . 75 13 Thermal 7 | . . 7 Explosive . | . . . Electromagnetic 1 | . 1 . Robot Hit Streak 9 | . 9 7 Robot Miss Streak 3 | . 3 3 Penetration Max . | . . . Secondary Targets 3 | . 3 . Max Gunslinging Chain 1 | . 1 . Shots Hit Robots 74 | . 42 32 Core Hits 22 | . 20 2 Critical Kills 1 | . . 1 Critical Parts Destroyed 2 | . . 2 Critical Strikes 4 | . . 4 Smash 4 | . . 4 Melee Attacks 29 | . . 29 Impact 25 | . . 25 Slashing . | . . . Piercing . | . . . Sneak Attacks 1 | . . 1 Combat Hostiles . | . . . Follow-up Attacks . | . . . Damage Inflicted 1406 | . 913 493 Guns 745 | . 617 128 Cannons . | . . . Explosions 288 | . 288 . Melee 298 | . . 298 Ramming 8 | . 8 . Kinetic 737 | . 617 120 Thermal 75 | . . 75 Explosive 242 | . 242 . Electromagnetic 46 | . 46 . Impact 298 | . . 298 Slashing . | . . . Piercing . | . . . Highest Corruption 1 | . 1 1 Average Corruption 1 | . 1 1 Corruption Purged . | . . . Corruption Blocked . | . . . Effects 9 | . 5 4 Message Errors 4 | . 2 2 Heat Flow Errors 1 | . 1 . Parts Fused 1 | . 1 . Data Loss (minor) 2 | . . 2 Data Loss (major) 1 | . 1 . Overload Shots . | . . . Overflow Damage 79 | . . 79 Projectiles . | . . . Explosions . | . . . Melee 79 | . . 79 Knockbacks 2 | . . 2 Impact 2 | . . 2 Kinetic . | . . . Secondary . | . . . Self-Inflicted Damage . | . . . Shots . | . . . Rammed 1 | . 1 . Targets Rammed 2 | . 2 . Kicked . | . . . Crushed 1 | . 1 . Highest Temperature 211 | . 211 171 Average Temperature 27 | . 24 94 Received Heat Transfer 231 | . 24 207 Siege Activations . | . . . Martial Activations . | . . . Shielding Activations . | . . . Robots Disrupted . | . . . Combat Hostiles . | . . . Robots Corrupted 1 | . . 1 Combat Hostiles . | . . . Parts Fried 1 | . . 1 Impact Corruptions 3 | . . 3 Robots Melted . | . . . Combat Hostiles . | . . . Parts Melted . | . . . Heat Transferred 490 | . . 490 Parts Sabotaged . | . . . Parts Stolen . | . . . Parts Stripped . | . . . Power Chain Reactions . | . . . Alert | -11 -10 -10 ------- Run | Yrd Mat Sub Maximum Alert Level . | . . . Low Security (%) 100 | 100 100 . Level 1 . | . . . Level 2 . | . . . Level 3 . | . . . Level 4 . | . . . Level 5 . | . . . High Security . | . . . Max Security . | . . . Peak Influence 136 | . 136 . Initial . | . . . Average 39 | . 41 . Influence Increases 404 | . 404 . Destroy 0b10 Robot/C 240 | . 240 . Destroy 0b10 Robot/NC 35 | . 35 . Destroy Leader 56 | . 56 . Successful Hack 31 | . 31 . Disable Machine 15 | . 15 . Destroy Structure 27 | . 27 . Influence Decreases 404 | . 404 . Time Decay 329 | . 329 . Purge Threat 75 | . 75 . Squads Dispatched 2 | . 2 . Investigation 1 | . 1 . Extermination . | . . . Reinforcement 1 | . 1 . Assault . | . . . Garrison . | . . . Intercept . | . . . Searches Triggered . | . . . Construction Impeded . | . . . Haulers Reinforced . | . . . Active Scanning Responses . | . . . Cargo Convoy Interrupts . | . . . Stealth | -11 -10 -10 --------- Run | Yrd Mat Sub Distress Signals . | . . . Communications Jammed . | . . . Distress Signals . | . . . Times Spotted 23 | . 17 6 Peak Tracking Total 4 | . 4 2 Tactical Retreats . | . . . Traps | -11 -10 -10 ------- Run | Yrd Mat Sub Traps Triggered 3 | . 3 . Indirectly 2 | . 2 . Trap Hack Attempts . | . . . Triggered . | . . . Disarmed . | . . . Reprogrammed . | . . . Reused . | . . . Traps Extracted . | . . . Installed . | . . . Triggered . | . . . Machines | -11 -10 -10 ---------- Run | Yrd Mat Sub Machines Disabled 2 | . 1 1 Max in Single Turn 1 | . 1 1 Machines Repaired . | . . . Machines Dismantled . | . . . Machines Sabotaged . | . . . Overloaded Fab Kills . | . . . Hacking | -11 -10 -10 --------- Run | Yrd Mat Sub Machines Accessed 6 | . 5 1 Terminals 5 | . 5 . Fabricators . | . . . Repair Stations . | . . . Recycling Units . | . . . Scanalyzers . | . . . Garrison Access . | . . . Total Hacks 26 | . 17 9 Successful 17 | . 8 9 Failed 9 | . 9 . Catastrophic 1 | . 1 . Database Lockouts . | . . . Manual 12 | . 12 . Terminals 17 | . 17 . Fabricators . | . . . Repair Stations . | . . . Recycling Units . | . . . Scanalyzers . | . . . Garrison Access . | . . . Terminal Hacks 15 | . 6 9 Record 8 | . . 8 Robot Analysis 2 | . 2 . Prototype ID Bank 1 | . 1 . Branch Access Points 1 | . 1 . Unreport Threat 2 | . 2 . Proto ID Catalog 1 | . . 1 Fabricator Hacks . | . . . Repair Station Hacks . | . . . Recycling Unit Hacks . | . . . Scanalyzer . | . . . Garrison Access Hacks . | . . . Unauthorized Hacks 2 | . 2 . Terminals 2 | . 2 . Assimilate 1 | . 1 . Operators 1 | . 1 . Fabricators . | . . . Repair Stations . | . . . Recycling Units . | . . . Scanalyzers . | . . . Garrison Access . | . . . Data Cores Recovered . | . . . Used . | . . . Hacking Detections 5 | . 5 . Full Trace Events 3 | . 3 . Feedback Events 1 | . 1 . Corruption 1 | . 1 . Feedback Blocked . | . . . Robot Schematics Acquired . | . . . Robots Built . | . . . Authchips . | . . . Time . | . . . Total Robot Build Rating . | . . . Part Schematics Acquired . | . . . Parts Built . | . . . Authchips . | . . . Time . | . . . Total Part Build Rating . | . . . Part Studies Acquired . | . . . Parts Repaired . | . . . Time . | . . . Parts Recycled . | . . . Recycled Matter . | . . . Retrieved Matter . | . . . Retrieved Components . | . . . Parts Scanalyzed . | . . . Part Schematics Acquired . | . . . Parts Damaged . | . . . Bothacking | -11 -10 -10 ------------ Run | Yrd Mat Sub Used RIF Installer . | . . . Robots Hacked . | . . . Non-combat . | . . . Combat . | . . . Robot Hacks Applied . | . . . Relay Couplers Released . | . . . Fabnet Peak Effective % . | . . . Robots Rewired . | . . . Allies Hacked . | . . . Hacks Repelled . | . . . Allies | -11 -10 -10 -------- Run | Yrd Mat Sub Total Allies . | . . . Largest Group . | . . . Highest-Rated Group . | . . . Highest-Rated Ally . | . . . Total Orders . | . . . Ally Attacks . | . . . Total Damage . | . . . Kills . | . . . Allies Corrupted . | . . . Allies Melted . | . . . X0-1V1 Amusement Gains 35 | . 4 31 Good Acts 3 | . . 3 Bad Acts 6 | . . 6 Intel | -11 -10 -10 ------- Run | Yrd Mat Sub Active Infowar (turns) . | . . . Robot Analysis Total 2 | . 2 . Derelict Logs Recovered . | . . . Drone Launches . | . . . Drone Recoveries . | . . . Exploration | -11 -10 -10 ------------- Run | Yrd Mat Sub Turns Passed 1784 | 69 1248 467 Spaces Moved 912 | 39 699 174 Core 3 | 3 . . Treads 909 | 36 699 174 Legs . | . . . Wheels . | . . . Hover . | . . . Flight . | . . . Fastest Speed 50 | 50 160 160 Average Speed 163 | 151 160 181 Slowest Speed 240 | 160 160 240 Overloaded Moves . | . . . Propulsion Burnouts . | . . . Robots Hopped . | . . . Potential Cave-ins . | . . . Cave-ins Triggered . | . . . Exploration Rate (%) 38 | 4 93 19 Regions Visited 2 Branch Regions 1 Pre-discovered Areas . | . . . Known Exits Taken . | . . . Unknown Exits Taken 2 | 1 1 . Scrap Searched . | . . . Spaces Dug . | . . . Terrain Destroyed 25 | . 25 . Melee . | . . . Projectile . | . . . AOE 25 | . 25 . Terrain Rammed . | . . . Walls Destroyed . | . . . Machines Disabled . | . . . Actions | -11 -10 -10 --------- Run | Yrd Mat Sub Total 1077 | 46 770 261 Wait 11 | . . 11 Move 910 | 38 698 174 Hop . | . . . Pick Up 16 | 1 14 1 Fast Attach 12 | 6 3 3 Attach 13 | . 4 9 Detach 11 | . 6 5 Swap 2 | 1 1 . Drop 13 | . 4 9 Fire 58 | . 38 20 Melee 29 | . . 29 Ram . | . . . Kick . | . . . Crush 2 | . 2 . Escape Stasis . | . . . Rewire . | . . . Trap . | . . . Miscellaneous . | . . . Route ------- -11/Scrapyard -10/Materials (discovered 5 exits: [*Mat x3] / *Min / *Sub) -10/Subcaves History --------- Turn | Location | Event 22 | -11/Scrapyard | Discovered new exit (range 16) 70 | -11/Scrapyard | Entered Materials 71 | -10/Materials | Met a group of wandering Federalists 221 | -10/Materials | Discovered new exit (range 10) 303 | -10/Materials | Build established: Mutant 546 | -10/Materials | Discovered new exit (range 14) 986 | -10/Materials | Discovered new exit (range 14) 1142 | -10/Materials | Identified exit to Mines 1290 | -10/Materials | Discovered new exit (range 9) 1303 | -10/Materials | Prayed at D.C.S.S. Altar Unit 1318 | -10/Materials | Entered Subcaves 1319 | -10/Subcaves | Continued accompanying wandering Federalists (5) 1419 | -10/Subcaves | Lost 5 allies 1475 | -10/Subcaves | Core integrity fell below 50% 1520 | -10/Subcaves | Lost 7 parts (2p3n1u1w) 1619 | -10/Subcaves | Visited 4L-MR0's lab 1634 | -10/Subcaves | Found Prototype Device 1634 | -10/Subcaves | Identified Sfc. Transmogrifier 1648 | -10/Subcaves | Found Maxwheels 1736 | -10/Subcaves | Core integrity fell below 20% 1785 | -10/Subcaves | Destroyed by AE-L7F(R) with Subdweller Laser Last Messages --------------- 01658_ Unknown Wheel fried. 01658_ 4L-MR0 cries out in pain. 01660_ Acquired 26 matter. 01664_ Subatomizers dissect the Flight Unit. 01695_ W1XAY#K5KLO7O|YQIP6OZ9FDJYS 01699_ AE-L7F(R): "SUBMAD!" 01705_ X0-1V1: "The ol' switcheroo!" Form resolidifies at new position. HS-BLU(R) Statue form resolidifies at new position. 01730_ System corrupted: Component data lost. 01746_ Sfc. Transmogrifier converts Lgt. Treads into Imp. Treads. 01765_ Autogun destroyed. 01769_ X0-1V1's Piety Tracker destroyed. 01776_ X0-1V1: "I know that drunk sailor look when I see it." 01782_ X0-1V1 ensures you are ready for glorious battle (+Spread Laser). 01785_ X0-1V1 chuckles heartily! Map ----- +----------------------------------------------------+ | | | | | | | | | | | | | ?????????????????????????????????????????????????? | | ?????????????????????????????????????????????????? | | ?????????????????????????????????????????????????? | | ?????????????????????????????????????????????????? | | ?????????????????????????????????????????????????? | | ?????????????????????????????????????????????????? | | ?????????????????????????????????????????????????? | | ?????????????????????????????????????????????????? | | ?????????????????????????????????????????????????? | | ?????????????????????????????????????????????????? | | ?????????????????????????????????????????????????? | | ?????????????????????????????????????????????????? | | ?????????????????????????????????????????????????? | | ?????????????????????????????????????????????????? | | ????????????###########??????????????????????????? | | ???????????? " #???#######????########???? | | ??????????? " ####" ###### ## #???? | | ??????????? " """ # # #???? | | ??????????? " u R #???? | | ??????????? " ""@ " ## # ##???? | | ??????????? "##""###"#### ####" ## #???? | | ???????????? ????###??###??###??#" ### ##???? | | ???????????????????????????????????#" ### ###### | | ???????????????????????????????????#" ##?##[*# # # | | ???????????????????????????????????#" #?###%& | | ???????????????????????????????????# ## #!= # # | | ????????????????????????#########??# ####### | | ???????????????????????##" """""#### #?? | | ???????????????????????# """""" ""### ##? | | ???????????????????????# """"" " ## ## ## | | ???????????????????????#"" "" " ## ### # | | ???????????????????????### " ##" # #?# | | ????????????????????????###+##### ## ### | | ????????????????????????#" "#?# #" ### | | ????????????????????????#"/ "#?# ##?? | | ????????????????????????#!=""#?# ##?? | | ????????????????????????#==X"#?# #"" #?? | | ????????????????????????#!=""#?#####" ## | | ????????????????????????#!#""#?????# ## ## | | ????????????????????????# #""#?????## ##?? ## | | ????????????????????????######??????# ###???? | | ????????????????????????????????????# #?????? | | ????????????????????????????????????#####?????? | | ??????????????????????????????????????????????? | +----------------------------------------------------+ Best States ------------- Heat Dissipation 25 Energy Generation 10 Energy Capacity 250 Matter Stores 300 Matter Capacity 300 Sight Range 16 Terrain Scan Density 10 Armor Coverage 150 Evasion (%) 40 Recoil Reduction 2 Item Schematics ----------------- None Robot Schematics ------------------ None Fabricated ------------ Nothing Repaired ---------- Nothing Studied --------- None Alien Tech Used ----------------- None Achievements -------------- Chaos Is Inevitable Mistaken Identity Challenges ------------ None Game ------ Seed EfficiencyBiocellSpiker Manual? 0 Play Time 00:15:24 Cumulative 36.0 hours Start 2026.07.08 @ 13:05:57 End 2026.07.08 @ 13:22:37 Sessions 1 Manual Loads 0 Difficulty Rogue Special Mode None Game No. 101 Rogue 101 Adventurer 0 Explorer 0 Win Type - Total 0 Types 0/0/0/0/0/0/0/0/0/0 Lore% 20 Gallery% 28 Achievement% 23 Wizard Run 0 Options --------- Layout 1 ASCII 0 Keyboard 1 Movement Vi Keybinds 0 Fullscreen 1 Font 24/Smallcaps Map View 50x35 Zoom Use 0% Tactical HUD 1 Map Filters NONE Filters NONE Steam 1 RUN: fd7cfac2-c9ec-48ea-ab8d-62c5b6d457eb